Workbook

Sheet 1
A1: Школа | B1: ГБОУ "Татарско -Елтанская школа -интернат для детей с ОВЗ" | E1: Отд./корп | I1: День | J1: 2023-12-03
A3: Прием пищи | B3: Раздел | C3: № рец. | D3: Блюдо | E3: Выход, г | F3: Цена | G3: Калорийность | H3: Белки | I3: Жиры | J3: Углеводы | M3: ,
A4: Завтрак | B4: гор.блюдо | D4: каша молочная овсяная | E4: 200 | F4: 11.19 | G4: 257 | H4: 7.07 | I4: 11.6 | J4: 31
B5: гор.напиток | D5: компот из свежих яблок | E5: 200 | F5: 4.44 | G5: 92.9 | H5: 0 | I5: 0 | J5: 23.3
B6: хлеб | D6: бутерброд с маслом | E6: 30*20 | F6: 6.66 | G6: 220 | H6: 2.02 | I6: 16.6 | J6: 15.21
B7: хлеб | D7: хлеб пшеничный | E7: 70 | F7: 4.62 | G7: 164 | H7: 4.7 | I7: 0.57 | J7: 35.8
F8: =SUM(F4:F7) -> 26.91 | G8: =SUM(G4:G7) -> 734.6 | H8: =SUM(H4:H7) -> 13.79 | I8: =SUM(I4:I7) -> 28.77 | J8: =SUM(J4:J7) -> 105.31
B9: фрукты | D9: фрукты | E9: 100 | F9: 10.80 | G9: 66 | H9: 0.6 | I9: 0.6 | J9: 14.54
B10: сок | D10: сок фруктовый | E10: 200 | F10: 10.20 | G10: 84.8 | H10: 1 | I10: 0 | J10: 20
B11: конд. Изд | D11: печенье | E11: 20 | F11: 1.82 | G11: 190 | H11: 3.38 | I11: 3.77 | J11: 36
F12: =SUM(F9:F11) -> 22.82 | G12: =SUM(G9:G11) -> 341 | H12: =SUM(H9:H11) -> 4.98 | I12: =SUM(I9:I11) -> 4.37 | J12: =SUM(J9:J11) -> 70.74
A13: Обед
B14: 1 блюдо | D14: борщ из сввежий капусты м/к бул .сметаной | E14: 200*15*10 | F14: 12.87 | G14: 82.8 | H14: 1.60 | I14: 4 | J14: 10.1
B15: птица | D15: птица тушеное в соусе | E15: 100 | F15: 21.52 | G15: 164 | H15: 11.65 | I15: 10.75 | J15: 11.63
B16: гарнир | D16: каша гречневая рассыпчатая | E16: 150 | F16: 8.77 | G16: 230 | H16: 7.46 | I16: 5.61 | J16: 35.8
B17: гор.напиток | D17: компот из сухофруктов | E17: 200 | F17: 2.47 | G17: 158 | H17: 0.95 | I17: 0 | J17: 37.14
B18: хле пшен | D18: хлеб пшеничный | E18: 50 | F18: 2.65 | G18: 117 | H18: 3 | I18: 0 | J18: 25
B19: хлеб черн. | D19: хлеб ржаной | E19: 100 | F19: 5.50 | G19: 228.2 | H19: 5.56 | I19: 1.13 | J19: 49
F21: =SUM(F13:F20) -> 53.78 | G21: =SUM(G13:G20) -> 980 | H21: =SUM(H13:H20) -> 30.6 | I21: =SUM(I13:I20) -> 21.9 | J21: =SUM(J13:J20) -> 168.70
A22: Полдник | B22: выпечка | D22: булочка домашная | E22: 70 | F22: 5.35 | G22: 251.1 | H22: 6 | I22: 7.20 | J22: 36.29
B23: гор.напиток | D23: молоко | E23: 200 | F23: 12.53 | G23: 105 | H23: 5.6 | I23: 4.90 | J23: 9.30
B24: фрукты | D24: яблоко | E24: 100 | F24: 10.80 | G24: 66 | H24: 0.6 | I24: 0.6 | J24: 14.54
F25: =SUM(F22:F24) -> 28.68 | G25: =SUM(G22:G24) -> 422 | H25: =SUM(H22:H24) -> 12.2 | I25: =SUM(I22:I24) -> 12.70 | J25: =SUM(J22:J24) -> 60.13
A26: Ужин | B26: закуска | D26: соленые огурцы порционные | E26: 60 | F26: 1.56 | G26: 5 | H26: 0.4 | I26: 0.05 | J26: 1
B28: 2 блюда | D28: жаркое по- домашнему | E28: 200 | F28: 42.20 | G28: 337 | H28: 18.51 | I28: 20.67 | J28: 18.94
B29: хлеб | D29: хлеб ржаной | E29: 50 | F29: 2.75 | G29: 114 | H29: 2.78 | I29: 0.57 | J29: 24.7
B30: гор.напиток | D30: чай с сахаром | E30: 200 | F30: 1.55 | G30: 40 | H30: 0.53 | I30: 0 | J30: 9.47
B31: хлеб | D31: хлеб пшеничный | E31: 50 | F31: 2.65 | G31: 117 | H31: 3.38 | I31: 0.41 | J31: 25.03
B32: кисломолоч | D32: кефир | E32: 200 | F32: 19.31 | G32: 105 | H32: 5.8 | I32: 5 | J32: 8
F33: =SUM(F26:F32) -> 70.02 | G33: =SUM(G26:G32) -> 719 | H33: =SUM(H26:H32) -> 31.4 | I33: =SUM(I26:I32) -> 26.7 | J33: =SUM(J26:J32) -> 87
F34: =SUM(F33,F25,F21,F12,F8) -> 202.21 | G34: =SUM(G33,G25,G21,G12,G8) -> 3196 | H34: =SUM(H33,H25,H21,H12,H8) -> 92.97 | I34: =SUM(I33,I25,I21,I12,I8) -> 94.44 | J34: =SUM(J33,J25,J21,J12,J8) -> 492
H35: ,
